[Event "*** Titled Tuesday Blitz"]
[Site "Chess.com"]
[Date "2019.08.06"]
[Round "6"]
[White "WeAintSurePal"]
[Black "Hanging_pointer"]
[Result "0-1"]
[WhiteElo "2310"]
[BlackElo "2468"]
[TimeControl "180+2"]
[EndTime "14:26:21 PDT"]
[Termination "Hanging_pointer won by resignation"]

1. Nf3 {[%clk 0:03:01.9]} 1... d5 {[%clk 0:02:59.8]} 2. b3 {[%clk 0:03:02.9]}
2... Nf6 {[%clk 0:02:58.4]} 3. Bb2 {[%clk 0:03:04.1]} 3... e6 {[%clk 0:03:00.3]}
4. e3 {[%clk 0:03:05.6]} 4... c5 {[%clk 0:02:59.6]} 5. c4 {[%clk 0:03:06.8]}
5... Nc6 {[%clk 0:02:58.4]} 6. Be2 {[%clk 0:03:05.8]} 6... d4 {[%clk 0:02:55.9]}
7. exd4 {[%clk 0:03:00.6]} 7... cxd4 {[%clk 0:02:57.8]} 8. d3 {[%clk 0:02:59.7]}
8... Be7 {[%clk 0:02:52.8]} 9. O-O {[%clk 0:03:01.1]} 9... O-O {[%clk
0:02:53.1]} 10. Re1 {[%clk 0:03:02.7]} 10... Ne8 {[%clk 0:02:42.4]} 11. Bf1
{[%clk 0:03:03.2]} 11... f6 {[%clk 0:02:43.7]} 12. Nbd2 {[%clk 0:03:03.2]} 12...
e5 {[%clk 0:02:43.8]} 13. a3 {[%clk 0:03:04.1]} 13... a5 {[%clk 0:02:44.8]} 14.
g3 {[%clk 0:03:03.4]} 14... Nc7 {[%clk 0:02:43.5]} 15. Bg2 {[%clk 0:03:04.1]}
15... Ne6 {[%clk 0:02:42.3]} 16. Rb1 {[%clk 0:03:02.7]} 16... Nc5 {[%clk
0:02:41.6]} 17. Ne4 {[%clk 0:03:03.2]} 17... Bf5 {[%clk 0:02:30.9]} 18. Nxc5
{[%clk 0:02:52.9]} 18... Bxc5 {[%clk 0:02:32.8]} 19. Nh4 {[%clk 0:02:50.6]}
19... Be6 {[%clk 0:02:31.2]} 20. f4 {[%clk 0:02:50.7]} 20... Qd6 {[%clk
0:02:28]} 21. f5 {[%clk 0:02:48.3]} 21... Bf7 {[%clk 0:02:28]} 22. Ra1 {[%clk
0:02:44.1]} 22... Rab8 {[%clk 0:02:24.8]} 23. Be4 {[%clk 0:02:33.5]} 23... b5
{[%clk 0:02:14.8]} 24. Bc1 {[%clk 0:02:24.2]} 24... Ba7 {[%clk 0:01:24]} 25. Ng6
{[%clk 0:02:06.6]} 25... Rfc8 {[%clk 0:01:15.6]} 26. Qf3 {[%clk 0:01:20]} 26...
Ne7 {[%clk 0:00:58.6]} 27. Nxe7+ {[%clk 0:01:16.4]} 27... Qxe7 {[%clk
0:01:00.5]} 28. Bd2 {[%clk 0:01:16.9]} 28... a4 {[%clk 0:00:37.7]} 29. Bb4
{[%clk 0:01:10.5]} 29... Qd7 {[%clk 0:00:18.5]} 30. cxb5 {[%clk 0:00:57.8]}
30... Qxb5 {[%clk 0:00:20.4]} 31. bxa4 {[%clk 0:00:57.5]} 31... Qxa4 {[%clk
0:00:22.3]} 32. Rac1 {[%clk 0:00:57.4]} 32... Qa6 {[%clk 0:00:15.7]} 33. Bd5
{[%clk 0:00:55.9]} 33... Qb5 {[%clk 0:00:11.3]} 34. Be6 {[%clk 0:00:51.6]} 34...
Rc3 {[%clk 0:00:03.4]} 35. Kg2 {[%clk 0:00:36.4]} 35... Bb6 {[%clk 0:00:03.1]}
36. Bxc3 {[%clk 0:00:35.3]} 36... dxc3 {[%clk 0:00:05]} 37. Bxf7+ {[%clk
0:00:32]} 37... Kxf7 {[%clk 0:00:06]} 38. Rb1 {[%clk 0:00:24.1]} 38... Qd7
{[%clk 0:00:06.3]} 39. Rec1 {[%clk 0:00:24.4]} 39... Qc7 {[%clk 0:00:04.4]} 40.
Qd5+ {[%clk 0:00:22.1]} 40... Kf8 {[%clk 0:00:04.1]} 41. Rb4 {[%clk 0:00:21.6]}
41... Rd8 {[%clk 0:00:05]} 42. Qc4 {[%clk 0:00:21.1]} 42... Qxc4 {[%clk
0:00:05.8]} 43. dxc4 {[%clk 0:00:21.2]} 43... Bd4 {[%clk 0:00:04.7]} 44. c5
{[%clk 0:00:22.4]} 44... Rc8 {[%clk 0:00:04.4]} 45. Rc4 {[%clk 0:00:23.5]} 45...
Ke7 {[%clk 0:00:05]} 46. Kf3 {[%clk 0:00:24.1]} 46... Kd7 {[%clk 0:00:06.1]} 47.
Ke4 {[%clk 0:00:25.2]} 47... Kc6 {[%clk 0:00:07.7]} 48. a4 {[%clk 0:00:22.8]}
48... Rb8 {[%clk 0:00:07.1]} 49. Rxd4 {[%clk 0:00:21.5]} 49... exd4 {[%clk
0:00:08.1]} 50. Kxd4 {[%clk 0:00:23.4]} 50... Rb4+ {[%clk 0:00:07.6]} 51. Kxc3
{[%clk 0:00:24.2]} 51... Kxc5 {[%clk 0:00:06.7]} 52. Ra1 {[%clk 0:00:25.6]}
52... Rc4+ {[%clk 0:00:04.8]} 53. Kd3 {[%clk 0:00:26.6]} 53... Rd4+ {[%clk
0:00:05.6]} 54. Ke3 {[%clk 0:00:28]} 54... Rd8 {[%clk 0:00:03.4]} 55. a5 {[%clk
0:00:28.9]} 55... Ra8 {[%clk 0:00:03.8]} 56. a6 {[%clk 0:00:30.3]} 56... Kb6
{[%clk 0:00:05.7]} 57. Ke4 {[%clk 0:00:30.4]} 57... Re8+ {[%clk 0:00:05.3]} 58.
Kd4 {[%clk 0:00:28]} 58... Ka7 {[%clk 0:00:07.2]} 59. Kd5 {[%clk 0:00:29.3]}
59... Re2 {[%clk 0:00:07.8]} 60. g4 {[%clk 0:00:26.5]} 60... Rxh2 {[%clk
0:00:07.5]} 61. Ke6 {[%clk 0:00:27.7]} 61... Rg2 {[%clk 0:00:08.2]} 62. Ra4
{[%clk 0:00:28]} 62... h5 {[%clk 0:00:05.9]} 63. Kf7 {[%clk 0:00:25.3]} 63...
Rxg4 {[%clk 0:00:05.3]} 64. Ra5 {[%clk 0:00:25.6]} 64... h4 {[%clk 0:00:05]} 65.
Ra3 {[%clk 0:00:27]} 65... Rg3 {[%clk 0:00:06]} 66. Ra2 {[%clk 0:00:28.4]} 66...
h3 {[%clk 0:00:06.8]} 67. Ke6 {[%clk 0:00:25]} 67... Rg2 {[%clk 0:00:06.5]} 68.
Ra1 {[%clk 0:00:26.4]} 68... h2 {[%clk 0:00:06]} 69. Rh1 {[%clk 0:00:25]} 69...
Kxa6 {[%clk 0:00:07.4]} 70. Kd5 {[%clk 0:00:26.6]} 70... Kb5 {[%clk 0:00:08.7]}
71. Ke4 {[%clk 0:00:27.8]} 71... Kc4 {[%clk 0:00:10]} 72. Rc1+ {[%clk 0:00:23]}
72... Kb3 {[%clk 0:00:10.9]} 73. Rh1 {[%clk 0:00:24.9]} 73... Kc2 {[%clk
0:00:11.5]} 74. Kf3 {[%clk 0:00:25.9]} 74... Rd2 {[%clk 0:00:12.7]} 75. Ke3
{[%clk 0:00:24.8]} 75... Kc3 {[%clk 0:00:11.9]} 76. Rc1+ {[%clk 0:00:23.5]}
76... Rc2 {[%clk 0:00:13.1]} 77. Rh1 {[%clk 0:00:25.4]} 77... Kc4 {[%clk
0:00:13.3]} 78. Ke4 {[%clk 0:00:25.7]} 78... Re2+ {[%clk 0:00:11]} 79. Kf3
{[%clk 0:00:26.1]} 79... Kd3 {[%clk 0:00:12.4]} 80. Rd1+ {[%clk 0:00:27.1]}
80... Rd2 {[%clk 0:00:13.9]} 81. Ra1 {[%clk 0:00:26.5]} 81... Kd4 {[%clk
0:00:12]} 82. Ra4+ {[%clk 0:00:21.7]} 82... Ke5 {[%clk 0:00:11.9]} 83. Rh4
{[%clk 0:00:20.9]} 83... Kxf5 {[%clk 0:00:11.6]} 84. Rh5+ {[%clk 0:00:22.4]}
84... Kg6 {[%clk 0:00:12]} 85. Rh3 {[%clk 0:00:23.8]} 85... Ra2 {[%clk
0:00:13.1]} 86. Rg3+ {[%clk 0:00:24.7]} 86... Kf5 {[%clk 0:00:14.1]} 87. Rh3
{[%clk 0:00:26.6]} 87... Ra3+ {[%clk 0:00:14.9]} 88. Kg2 {[%clk 0:00:28.2]}
88... Rxh3 {[%clk 0:00:15.1]} 89. Kh1 {[%clk 0:00:30.1]} 89... Ra3 {[%clk
0:00:15.7]} 0-1

[Event "*** Titled Tuesday Blitz"]
[Site "Chess.com"]
[Date "2019.08.06"]
[Round "6"]
[White "NoGalloNoParty"]
[Black "Slovak_fighter2000"]
[Result "1/2-1/2"]
[WhiteElo "2321"]
[BlackElo "2467"]
[TimeControl "180+2"]
[EndTime "14:27:15 PDT"]
[Termination "Game drawn - insufficient material"]

1. d4 {[%clk 0:03:01.9]} 1... Nf6 {[%clk 0:02:59.7]} 2. c4 {[%clk 0:02:46.6]}
2... c5 {[%clk 0:02:59.8]} 3. Nf3 {[%clk 0:02:45.2]} 3... cxd4 {[%clk
0:03:00.1]} 4. Nxd4 {[%clk 0:02:45.7]} 4... e5 {[%clk 0:02:59.7]} 5. Nb5 {[%clk
0:02:41.6]} 5... d5 {[%clk 0:02:56.7]} 6. cxd5 {[%clk 0:02:41.8]} 6... Bc5
{[%clk 0:02:53]} 7. e3 {[%clk 0:02:40.4]} 7... O-O {[%clk 0:02:44]} 8. Be2
{[%clk 0:02:40.5]} 8... a6 {[%clk 0:02:37.9]} 9. N5c3 {[%clk 0:02:40.4]} 9... e4
{[%clk 0:02:37.8]} 10. O-O {[%clk 0:02:37.6]} 10... Qe7 {[%clk 0:02:26.6]} 11.
b3 {[%clk 0:01:36.8]} 11... Bd6 {[%clk 0:02:12.3]} 12. Bb2 {[%clk 0:01:11.5]}
12... Qe5 {[%clk 0:01:54.8]} 13. g3 {[%clk 0:01:12.1]} 13... Bh3 {[%clk
0:01:50.1]} 14. Re1 {[%clk 0:01:12]} 14... Qf5 {[%clk 0:01:40.5]} 15. Nd2 {[%clk
0:00:59.4]} 15... Be5 {[%clk 0:01:19.8]} 16. Qc2 {[%clk 0:00:43]} 16... Nbd7
{[%clk 0:01:11.5]} 17. f4 {[%clk 0:00:30.5]} 17... exf3 {[%clk 0:01:08.1]} 18.
Qxf5 {[%clk 0:00:29.2]} 18... Bxf5 {[%clk 0:01:07.3]} 19. Bxf3 {[%clk
0:00:28.7]} 19... Rac8 {[%clk 0:01:05.2]} 20. Nc4 {[%clk 0:00:29.4]} 20... Bb8
{[%clk 0:00:55.6]} 21. e4 {[%clk 0:00:28.2]} 21... Bg4 {[%clk 0:00:55.9]} 22.
Bg2 {[%clk 0:00:23.5]} 22... Ne5 {[%clk 0:00:54.7]} 23. Nxe5 {[%clk 0:00:20.5]}
23... Bxe5 {[%clk 0:00:56.6]} 24. Na4 {[%clk 0:00:19.3]} 24... Bxb2 {[%clk
0:00:52.2]} 25. Nxb2 {[%clk 0:00:21.2]} 25... Rc2 {[%clk 0:00:53.2]} 26. Nd3
{[%clk 0:00:22.1]} 26... Rd8 {[%clk 0:00:46.7]} 27. Rac1 {[%clk 0:00:20.3]}
27... Rd2 {[%clk 0:00:43.8]} 28. Ne5 {[%clk 0:00:19.2]} 28... Be2 {[%clk
0:00:37.6]} 29. Nc4 {[%clk 0:00:19.3]} 29... Bxc4 {[%clk 0:00:38.4]} 30. Rxc4
{[%clk 0:00:18.7]} 30... g6 {[%clk 0:00:36.5]} 31. Rc7 {[%clk 0:00:19]} 31...
Rd7 {[%clk 0:00:35.6]} 32. Rc8+ {[%clk 0:00:18.5]} 32... Kg7 {[%clk 0:00:35.5]}
33. Bh3 {[%clk 0:00:19.9]} 33... Re7 {[%clk 0:00:35.4]} 34. Bg2 {[%clk
0:00:16.3]} 34... Nxd5 {[%clk 0:00:32.7]} 35. Rcc1 {[%clk 0:00:16]} 35... Nb4
{[%clk 0:00:25.4]} 36. a3 {[%clk 0:00:16.4]} 36... Nd3 {[%clk 0:00:25.9]} 37.
Rcd1 {[%clk 0:00:17.7]} 37... Nxe1 {[%clk 0:00:22.1]} 38. Rxd2 {[%clk
0:00:17.8]} 38... Nxg2 {[%clk 0:00:21.9]} 39. Kxg2 {[%clk 0:00:19.7]} 39... Rxe4
{[%clk 0:00:23.4]} 40. Rd7 {[%clk 0:00:21.4]} 40... b5 {[%clk 0:00:23.5]} 41.
Rd6 {[%clk 0:00:21.6]} 41... Re3 {[%clk 0:00:24.4]} 42. Rxa6 {[%clk 0:00:22.2]}
42... Rxb3 {[%clk 0:00:25.7]} 43. g4 {[%clk 0:00:23.5]} 43... Kh6 {[%clk
0:00:23.6]} 44. h4 {[%clk 0:00:23.9]} 44... Kg7 {[%clk 0:00:19.3]} 45. g5 {[%clk
0:00:23.8]} 45... Rc3 {[%clk 0:00:15.5]} 46. Rb6 {[%clk 0:00:22.7]} 46... Rc5
{[%clk 0:00:15.5]} 47. Kg3 {[%clk 0:00:23.6]} 47... h6 {[%clk 0:00:16.4]} 48.
Kg4 {[%clk 0:00:24]} 48... h5+ {[%clk 0:00:14.1]} 49. Kh3 {[%clk 0:00:25.1]}
49... Rc3+ {[%clk 0:00:15]} 50. Kh2 {[%clk 0:00:25.2]} 50... Rb3 {[%clk
0:00:16]} 51. Rb7 {[%clk 0:00:25.6]} 51... Kf8 {[%clk 0:00:15.3]} 52. Kg2 {[%clk
0:00:26.5]} 52... Ke8 {[%clk 0:00:16.4]} 53. Kh2 {[%clk 0:00:27.5]} 53... Kf8
{[%clk 0:00:16.2]} 54. Kg2 {[%clk 0:00:28.7]} 54... Rxa3 {[%clk 0:00:17.2]} 55.
Rxb5 {[%clk 0:00:29]} 55... Ra4 {[%clk 0:00:19.1]} 56. Kh3 {[%clk 0:00:29.3]}
56... Rg4 {[%clk 0:00:20]} 57. Rb7 {[%clk 0:00:29.1]} 57... Kg7 {[%clk
0:00:20.9]} 58. Rc7 {[%clk 0:00:30]} 58... Rf4 {[%clk 0:00:22.1]} 59. Ra7 {[%clk
0:00:30.7]} 59... Rf3+ {[%clk 0:00:23.2]} 60. Kg2 {[%clk 0:00:31.6]} 60... Rf5
{[%clk 0:00:25.1]} 61. Kg3 {[%clk 0:00:32.8]} 61... Kf8 {[%clk 0:00:26.2]} 62.
Rb7 {[%clk 0:00:33.5]} 62... Re5 {[%clk 0:00:27.6]} 63. Ra7 {[%clk 0:00:33.1]}
63... Re7 {[%clk 0:00:28.6]} 64. Ra8+ {[%clk 0:00:34.3]} 64... Kg7 {[%clk
0:00:29.4]} 65. Kf4 {[%clk 0:00:34.1]} 65... Rb7 {[%clk 0:00:30.2]} 66. Rc8
{[%clk 0:00:32.4]} 66... Rb3 {[%clk 0:00:31]} 67. Rc4 {[%clk 0:00:23.4]} 67...
Rh3 {[%clk 0:00:32.1]} 68. Ke5 {[%clk 0:00:23.7]} 68... Rg3 {[%clk 0:00:32.9]}
69. Rf4 {[%clk 0:00:23]} 69... Re3+ {[%clk 0:00:33.1]} 70. Kd4 {[%clk
0:00:23.6]} 70... Re6 {[%clk 0:00:33.5]} 71. Kd5 {[%clk 0:00:23.8]} 71... Kf8
{[%clk 0:00:34.4]} 72. Ra4 {[%clk 0:00:22.9]} 72... Re1 {[%clk 0:00:34.1]} 73.
Ra8+ {[%clk 0:00:23.1]} 73... Kg7 {[%clk 0:00:34.7]} 74. Ra4 {[%clk 0:00:23.6]}
74... Rg1 {[%clk 0:00:23.8]} 75. Ke5 {[%clk 0:00:23.6]} 75... Re1+ {[%clk
0:00:22.3]} 76. Kf4 {[%clk 0:00:23.1]} 76... Rb1 {[%clk 0:00:22.9]} 77. Re4
{[%clk 0:00:21.6]} 77... Rb5 {[%clk 0:00:21.9]} 78. Ra4 {[%clk 0:00:22]} 78...
Rf5+ {[%clk 0:00:22.3]} 79. Ke4 {[%clk 0:00:23.1]} 79... Rf1 {[%clk 0:00:23]}
80. Ke5 {[%clk 0:00:23.5]} 80... Rh1 {[%clk 0:00:23]} 81. Kd5 {[%clk 0:00:24.5]}
81... Rh3 {[%clk 0:00:24]} 82. Ke5 {[%clk 0:00:25.5]} 82... Rb3 {[%clk
0:00:20.7]} 83. Rc4 {[%clk 0:00:26]} 83... Rb7 {[%clk 0:00:19.5]} 84. Ra4 {[%clk
0:00:26.9]} 84... Re7+ {[%clk 0:00:20.1]} 85. Kd5 {[%clk 0:00:24.4]} 85... f6
{[%clk 0:00:20.3]} 86. gxf6+ {[%clk 0:00:21.6]} 86... Kxf6 {[%clk 0:00:22.2]}
87. Rf4+ {[%clk 0:00:21.8]} 87... Kg7 {[%clk 0:00:22.9]} 88. Re4 {[%clk
0:00:21.3]} 88... Rxe4 {[%clk 0:00:23.9]} 89. Kxe4 {[%clk 0:00:23.2]} 89... Kf7
{[%clk 0:00:23.3]} 90. Ke3 {[%clk 0:00:21]} 90... Ke7 {[%clk 0:00:23.7]} 91. Kf4
{[%clk 0:00:21.2]} 91... Kf6 {[%clk 0:00:25.1]} 92. Ke4 {[%clk 0:00:22.3]} 92...
g5 {[%clk 0:00:25.3]} 93. hxg5+ {[%clk 0:00:23]} 93... Kxg5 {[%clk 0:00:27.2]}
94. Kf3 {[%clk 0:00:24.7]} 94... h4 {[%clk 0:00:25.8]} 95. Kg2 {[%clk
0:00:26.6]} 95... h3+ {[%clk 0:00:27]} 96. Kxh3 {[%clk 0:00:27.4]} 1/2-1/2

[Event "*** Titled Tuesday Blitz"]
[Site "Chess.com"]
[Date "2019.08.06"]
[Round "7"]
[White "Samantha_Ross"]
[Black "AlexanderKing"]
[Result "0-1"]
[WhiteElo "2096"]
[BlackElo "2644"]
[TimeControl "180+2"]
[EndTime "14:31:27 PDT"]
[Termination "AlexanderKing won by checkmate"]

1. c4 {[%clk 0:03:01.9]} 1... e6 {[%clk 0:03:01]} 2. Nf3 {[%clk 0:03:02.5]} 2...
d5 {[%clk 0:03:02.2]} 3. e3 {[%clk 0:03:03.2]} 3... Nf6 {[%clk 0:03:03.5]} 4. b3
{[%clk 0:03:04.7]} 4... c5 {[%clk 0:03:04.5]} 5. Bb2 {[%clk 0:03:04.9]} 5... Nc6
{[%clk 0:03:05.9]} 6. cxd5 {[%clk 0:03:06.2]} 6... exd5 {[%clk 0:03:07.8]} 7. d4
{[%clk 0:03:07.5]} 7... cxd4 {[%clk 0:03:09.2]} 8. Nxd4 {[%clk 0:03:09.4]} 8...
Bb4+ {[%clk 0:03:10.5]} 9. Nc3 {[%clk 0:03:07.5]} 9... Qa5 {[%clk 0:03:09.7]}
10. Qd3 {[%clk 0:03:02.8]} 10... Ne4 {[%clk 0:03:06.3]} 11. Ne2 {[%clk
0:02:57.2]} 11... Bf5 {[%clk 0:02:56.6]} 12. g4 {[%clk 0:02:54.5]} 12... Nxc3
{[%clk 0:01:45.6]} 13. Qxf5 {[%clk 0:02:52.3]} 13... Ne4+ {[%clk 0:01:46.8]} 14.
Kd1 {[%clk 0:02:51.2]} 14... Ba3 {[%clk 0:01:48]} 15. Bxg7 {[%clk 0:02:47.4]}
15... Qd2# {[%clk 0:01:47.6]} 0-1

[Event "*** Titled Tuesday Blitz"]
[Site "Chess.com"]
[Date "2019.08.06"]
[Round "7"]
[White "iLuusions"]
[Black "Pechen_Yeltsina"]
[Result "1/2-1/2"]
[WhiteElo "2552"]
[BlackElo "2651"]
[TimeControl "180+2"]
[EndTime "14:32:14 PDT"]
[Termination "Game drawn by repetition"]

1. d4 {[%clk 0:02:58.5]} 1... g6 {[%clk 0:03:01]} 2. c4 {[%clk 0:03:00.4]} 2...
Bg7 {[%clk 0:03:02.5]} 3. Nf3 {[%clk 0:03:01.8]} 3... d6 {[%clk 0:03:04.1]} 4.
g3 {[%clk 0:03:01.5]} 4... Nd7 {[%clk 0:03:05.1]} 5. Bg2 {[%clk 0:03:02.4]} 5...
e5 {[%clk 0:03:06.6]} 6. O-O {[%clk 0:03:03.5]} 6... Ne7 {[%clk 0:03:07.6]} 7.
Nc3 {[%clk 0:03:04.9]} 7... O-O {[%clk 0:03:08.1]} 8. e4 {[%clk 0:03:03.7]} 8...
exd4 {[%clk 0:03:09.3]} 9. Nxd4 {[%clk 0:03:03.5]} 9... Nc6 {[%clk 0:03:11.2]}
10. Be3 {[%clk 0:02:54.8]} 10... Nde5 {[%clk 0:03:10.3]} 11. Nxc6 {[%clk
0:02:47.7]} 11... bxc6 {[%clk 0:03:11.9]} 12. b3 {[%clk 0:02:03.2]} 12... Nxc4
{[%clk 0:03:07.2]} 13. bxc4 {[%clk 0:02:03]} 13... Bxc3 {[%clk 0:03:08.7]} 14.
Rc1 {[%clk 0:02:04.8]} 14... Bb2 {[%clk 0:03:07]} 15. Rc2 {[%clk 0:02:05.5]}
15... Bg7 {[%clk 0:03:08.3]} 16. c5 {[%clk 0:02:05.9]} 16... Ba6 {[%clk
0:03:07.2]} 17. Re1 {[%clk 0:02:06.9]} 17... dxc5 {[%clk 0:03:06.9]} 18. Qxd8
{[%clk 0:01:57.7]} 18... Rfxd8 {[%clk 0:03:06.7]} 19. Rxc5 {[%clk 0:01:58.8]}
19... Bb5 {[%clk 0:03:05.7]} 20. e5 {[%clk 0:01:58.4]} 20... Bf8 {[%clk
0:03:01.9]} 21. Rc2 {[%clk 0:01:53.9]} 21... Ba4 {[%clk 0:02:55.6]} 22. Rc4
{[%clk 0:01:43.5]} 22... Bb5 {[%clk 0:02:55.4]} 23. Rc2 {[%clk 0:01:44.6]} 23...
Ba4 {[%clk 0:02:55.9]} 24. Rc4 {[%clk 0:01:45.4]} 24... Bb5 {[%clk 0:02:56.5]}
25. Rc2 {[%clk 0:01:43.9]} 1/2-1/2

[Event "*** Titled Tuesday Blitz"]
[Site "Chess.com"]
[Date "2019.08.06"]
[Round "7"]
[White "SergeiAza"]
[Black "FearNoEvil12"]
[Result "1-0"]
[WhiteElo "2786"]
[BlackElo "2001"]
[TimeControl "180+2"]
[EndTime "14:33:44 PDT"]
[Termination "SergeiAza won by resignation"]

1. e4 {[%clk 0:03:01.9]} 1... a6 {[%clk 0:03:00.7]} 2. d4 {[%clk 0:03:02]} 2...
b5 {[%clk 0:03:02]} 3. Nf3 {[%clk 0:03:01.9]} 3... Bb7 {[%clk 0:03:03.4]} 4. Bd3
{[%clk 0:03:03]} 4... e6 {[%clk 0:03:04.7]} 5. O-O {[%clk 0:03:02.6]} 5... Nf6
{[%clk 0:03:06.1]} 6. Re1 {[%clk 0:03:03.1]} 6... d6 {[%clk 0:03:07.1]} 7. Nbd2
{[%clk 0:03:02.7]} 7... Nbd7 {[%clk 0:03:07.6]} 8. Nf1 {[%clk 0:03:02.9]} 8...
h6 {[%clk 0:03:07.5]} 9. c3 {[%clk 0:03:02.4]} 9... g5 {[%clk 0:03:08.3]} 10. a4
{[%clk 0:03:00.8]} 10... bxa4 {[%clk 0:03:07.8]} 11. Qxa4 {[%clk 0:02:57.6]}
11... g4 {[%clk 0:03:08.9]} 12. N3d2 {[%clk 0:02:50.6]} 12... h5 {[%clk
0:03:08.6]} 13. Ne3 {[%clk 0:02:46]} 13... h4 {[%clk 0:03:07.4]} 14. e5 {[%clk
0:02:46.4]} 14... Nd5 {[%clk 0:03:06.5]} 15. Nxd5 {[%clk 0:02:28.8]} 15... Bxd5
{[%clk 0:03:06.2]} 16. c4 {[%clk 0:02:29.9]} 16... Bb7 {[%clk 0:02:57.3]} 17. d5
{[%clk 0:02:30.4]} 17... dxe5 {[%clk 0:02:52.3]} 18. dxe6 {[%clk 0:02:30]} 18...
fxe6 {[%clk 0:02:50.7]} 19. Bg6+ {[%clk 0:02:26.9]} 19... Ke7 {[%clk 0:02:49.7]}
20. Ne4 {[%clk 0:02:19]} 20... Bh6 {[%clk 0:02:43.4]} 21. Qb4+ {[%clk
0:02:04.7]} 21... c5 {[%clk 0:02:31.8]} 22. Qxb7 {[%clk 0:02:02.4]} 22... Rb8
{[%clk 0:02:09]} 23. Qxa6 {[%clk 0:02:00.7]} 23... Rb6 {[%clk 0:02:09.1]} 24.
Qa7 {[%clk 0:01:57.8]} 24... Qg8 {[%clk 0:01:59.4]} 25. Rd1 {[%clk 0:01:50.2]}
25... Qxg6 {[%clk 0:01:27.5]} 26. Qxd7+ {[%clk 0:01:48.4]} 26... Kf8 {[%clk
0:01:22.2]} 27. Ra8+ {[%clk 0:01:48.7]} 1-0

[Event "*** Titled Tuesday Blitz"]
[Site "Chess.com"]
[Date "2019.08.06"]
[Round "7"]
[White "ruvat"]
[Black "santosalberto1987"]
[Result "1-0"]
[WhiteElo "2370"]
[BlackElo "2453"]
[TimeControl "180+2"]
[EndTime "14:34:04 PDT"]
[Termination "ruvat won by resignation"]

1. d4 {[%clk 0:03:01.9]} 1... d5 {[%clk 0:02:55.3]} 2. c4 {[%clk 0:03:02.2]}
2... c6 {[%clk 0:02:56.1]} 3. Nf3 {[%clk 0:03:03]} 3... Nf6 {[%clk 0:02:56.6]}
4. Qc2 {[%clk 0:03:03.7]} 4... g6 {[%clk 0:02:56.5]} 5. Bf4 {[%clk 0:03:03.5]}
5... Bf5 {[%clk 0:02:56.1]} 6. Qb3 {[%clk 0:03:03.8]} 6... Qb6 {[%clk
0:02:56.7]} 7. e3 {[%clk 0:03:04.5]} 7... Nbd7 {[%clk 0:02:54.8]} 8. Nc3 {[%clk
0:03:05]} 8... Bg7 {[%clk 0:02:52.5]} 9. h3 {[%clk 0:03:05.8]} 9... O-O {[%clk
0:02:52]} 10. c5 {[%clk 0:03:06]} 10... Qxb3 {[%clk 0:02:51.5]} 11. axb3 {[%clk
0:03:07.9]} 11... a6 {[%clk 0:02:52.2]} 12. b4 {[%clk 0:03:08.7]} 12... Ne4
{[%clk 0:02:52.9]} 13. g4 {[%clk 0:03:08.4]} 13... Nxc3 {[%clk 0:02:52.2]} 14.
gxf5 {[%clk 0:03:09.3]} 14... Ne4 {[%clk 0:02:50.2]} 15. Rg1 {[%clk 0:03:07.3]}
15... Rae8 {[%clk 0:02:44.6]} 16. h4 {[%clk 0:03:01.6]} 16... e5 {[%clk
0:02:44.5]} 17. fxe6 {[%clk 0:02:57.6]} 17... fxe6 {[%clk 0:02:44.4]} 18. Ne5
{[%clk 0:02:35.3]} 18... Nxe5 {[%clk 0:02:43.7]} 19. dxe5 {[%clk 0:02:34]} 19...
h6 {[%clk 0:01:52.5]} 20. Rxg6 {[%clk 0:02:22.6]} 20... Kh7 {[%clk 0:01:52.8]}
21. Rg2 {[%clk 0:02:05.2]} 21... Rf5 {[%clk 0:01:37.4]} 22. f3 {[%clk
0:01:44.9]} 22... Bxe5 {[%clk 0:01:37.9]} 23. fxe4 {[%clk 0:01:41]} 23... dxe4
{[%clk 0:01:38.7]} 24. Bxe5 {[%clk 0:01:36.8]} 24... Rxe5 {[%clk 0:01:40.3]} 25.
Rd1 {[%clk 0:01:31]} 25... Rd5 {[%clk 0:01:41]} 26. Bc4 {[%clk 0:01:26.8]} 26...
Rxd1+ {[%clk 0:01:40.7]} 27. Kxd1 {[%clk 0:01:27.6]} 27... Re7 {[%clk
0:01:39.6]} 28. Ke2 {[%clk 0:01:27.7]} 28... h5 {[%clk 0:01:38.4]} 29. Rg5
{[%clk 0:01:27.1]} 29... Kh6 {[%clk 0:01:39.4]} 30. Re5 {[%clk 0:01:27.9]} 1-0

[Event "*** Titled Tuesday Blitz"]
[Site "Chess.com"]
[Date "2019.08.06"]
[Round "7"]
[White "Triumphmate"]
[Black "Komissarov_alex"]
[Result "1-0"]
[WhiteElo "2282"]
[BlackElo "2163"]
[TimeControl "180+2"]
[EndTime "14:34:30 PDT"]
[Termination "Triumphmate won on time"]

1. e4 {[%clk 0:03:01.9]} 1... d5 {[%clk 0:02:59.4]} 2. exd5 {[%clk 0:03:02]}
2... Nf6 {[%clk 0:02:59.7]} 3. Nc3 {[%clk 0:03:03.9]} 3... Nxd5 {[%clk
0:02:59.1]} 4. Bc4 {[%clk 0:03:05.5]} 4... e6 {[%clk 0:02:57.3]} 5. Qf3 {[%clk
0:03:05]} 5... Nc6 {[%clk 0:02:39.9]} 6. Nxd5 {[%clk 0:03:04.7]} 6... Ne5 {[%clk
0:02:35.7]} 7. Qf4 {[%clk 0:02:50.6]} 7... Bd6 {[%clk 0:02:22.4]} 8. Nxc7+
{[%clk 0:02:45.8]} 8... Qxc7 {[%clk 0:02:11.6]} 9. Bb5+ {[%clk 0:02:47.3]} 9...
Kf8 {[%clk 0:01:55.1]} 10. Qe4 {[%clk 0:02:43.7]} 10... f5 {[%clk 0:01:51.6]}
11. Qe2 {[%clk 0:02:44.4]} 11... Qxc2 {[%clk 0:01:48.3]} 12. Nf3 {[%clk
0:02:44.9]} 12... Ng6 {[%clk 0:01:13.3]} 13. d4 {[%clk 0:02:34.5]} 13... Bb4+
{[%clk 0:01:08.9]} 14. Kf1 {[%clk 0:02:29.9]} 14... Qc7 {[%clk 0:01:01.8]} 15.
Bd2 {[%clk 0:02:23.5]} 15... Bxd2 {[%clk 0:00:51.6]} 16. Qxd2 {[%clk 0:02:25.4]}
16... a6 {[%clk 0:00:45.6]} 17. Be2 {[%clk 0:02:24.7]} 17... b6 {[%clk
0:00:41.6]} 18. Rc1 {[%clk 0:02:25.9]} 18... Qd6 {[%clk 0:00:39.4]} 19. g3
{[%clk 0:02:26.3]} 19... Bb7 {[%clk 0:00:37.2]} 20. Kg2 {[%clk 0:02:27.1]} 20...
Be4 {[%clk 0:00:25.3]} 21. Rhd1 {[%clk 0:02:25.5]} 21... Qd5 {[%clk 0:00:22.8]}
22. Qe3 {[%clk 0:02:24.9]} 22... Kf7 {[%clk 0:00:12.3]} 23. Bc4 {[%clk
0:02:23.4]} 23... Qd6 {[%clk 0:00:08.3]} 24. Kg1 {[%clk 0:02:23.2]} 24... Rhc8
{[%clk 0:00:06]} 25. Ng5+ {[%clk 0:02:24.1]} 1-0